fUST/lending_fUST_20251031
["ID","MTS","AMOUNT","RATE_DAILY","PERIOD"]
[392718401,1761853867817,-151.0,0.00053424,120]
[392718402,1761853867826,-691.089861,0.00053424,120]
[392718403,1761853867835,-691.089861,0.00053424,120]
[392718404,1761853867845,-691.089861,0.00053424,120]
[392718405,1761853867855,-691.089861,0.00053424,120]
[392718406,1761853867864,-151.0,0.00053424,120]
[392718407,1761853867874,-192.225982,0.00053424,120]
[392718408,1761853867887,-500.0,0.00053424,120]
[392718409,1761853867897,-500.0,0.00053424,120]
[392718410,1761853867907,-639.83,0.00053424,120]
[392718411,1761853867917,-500.0,0.00053424,120]
[392718412,1761853867926,-500.0,0.00053424,120]
[392718413,1761853867936,-500.0,0.00053424,120]
[392718414,1761853867945,-532.207954,0.00053424,120]
[392718415,1761853867955,-296.346546,0.00053424,120]
[392718416,1761853867965,-532.207954,0.00053424,120]
[392718417,1761853867974,-158.231,0.00053424,120]
[392718418,1761853867984,-532.207954,0.00053424,120]
[392718419,1761853867997,-296.346546,0.00053424,120]
[392718420,1761853868006,-532.207954,0.00053424,120]
[392718421,1761853868016,-296.346546,0.00053424,120]
[392718422,1761853868025,-296.346546,0.00053424,120]
[392718423,1761853868035,-500.0,0.00053424,120]
[392718424,1761853868045,-500.0,0.00053424,120]
[392718425,1761853868055,-159.95,0.00053424,120]
[392718426,1761853868066,-500.0,0.00053424,120]
[392718427,1761853868076,-500.0,0.00053424,120]
[392718428,1761853868085,-500.0,0.00053424,120]
[392718429,1761853868094,-500.0,0.00053424,120]
[392718430,1761853868104,-500.0,0.00053424,120]
[392718431,1761853868115,-500.0,0.00053424,21]
[392718432,1761853868124,-500.0,0.00053424,120]
[392718433,1761853868137,-412.4,0.00053424,120]
[392718434,1761853868147,-500.0,0.00053424,120]
[392718435,1761853868157,-500.0,0.00053424,120]
[392718436,1761853868167,-500.0,0.00053424,120]
[392718437,1761853868177,-647.75,0.00053424,120]
[392718438,1761853868187,-970.77,0.00053424,3]
[392718439,1761853868197,-500.0,0.00053424,120]
[392718440,1761853868207,-500.0,0.00053424,120]
[392718441,1761853868217,-509.06,0.00053424,120]
[392718442,1761853868227,-500.0,0.00053424,120]
[392718443,1761853868237,-500.0,0.00053424,120]
[392718444,1761853868246,-395.15,0.00053424,120]
[392718445,1761853868256,-500.0,0.00053424,120]
[392718446,1761853868266,-500.0,0.00053424,120]
[392718447,1761853868276,-500.0,0.00053424,120]
[392718448,1761853868287,-500.0,0.00053424,120]
[392718449,1761853868296,-500.0,0.00053424,120]
[392718450,1761853868306,-500.0,0.00053424,120]
[392718451,1761853868316,-2466.68,0.00053424,120]
[392718452,1761853868325,-500.0,0.00053424,120]
[392718453,1761853868335,-500.0,0.00053424,120]
[392718454,1761853868345,-460.1,0.00053424,120]
[392718455,1761853868354,-500.0,0.00053424,120]
[392718456,1761853868364,-500.0,0.00053424,120]
[392718457,1761853868374,-500.0,0.00053424,120]
[392718458,1761853868387,-500.0,0.00053424,120]
[392718459,1761853868399,-500.0,0.00053424,120]
[392718460,1761853868408,-500.0,0.00053424,120]
[392718461,1761853868418,-500.0,0.00053424,120]
[392718462,1761853868427,-500.0,0.00053424,120]
[392718463,1761853868437,-500.0,0.00053424,120]
[392718464,1761853868452,-500.0,0.00053424,120]
[392718465,1761853868462,-500.0,0.00053424,120]
[392718466,1761853868471,-167.45,0.00053424,120]
[392718467,1761853868481,-500.0,0.00053424,120]
[392718468,1761853868492,-452.36,0.00053424,120]
[392718469,1761853868503,-500.0,0.00053424,120]
[392718470,1761853868515,-500.0,0.00053424,120]
[392718471,1761853868525,-619.4,0.00053424,120]
[392718472,1761853868535,-500.0,0.00053424,120]
[392718473,1761853868544,-500.0,0.00053424,120]
[392718474,1761853868554,-500.0,0.00053424,120]
[392718475,1761853868564,-328.46,0.00053424,120]
[392718476,1761853868574,-500.0,0.00053424,120]
[392718477,1761853868584,-159.36862717,0.00053425,120]
[392718478,1761853868595,-500.0,0.0005344,30]
[392718479,1761853868606,-168787.94170936,0.000535,120]
[392718480,1761853868615,-177.547605,0.000535,120]
[392718481,1761853868630,-177.547605,0.000535,120]
[392718482,1761853868641,-151.0,0.000535,2]
[392718483,1761853868652,-177.547605,0.000535,120]
[392718484,1761853868664,-236.268632,0.000535,2]
[392718485,1761853868675,-177.547608,0.000535,120]
[392718486,1761853868685,-151.0,0.000535,120]
[392718487,1761853868696,-151.0,0.000535,120]
[392718488,1761853868707,-151.0,0.000535,120]
[392718489,1761853868718,-151.0,0.000535,120]
[392718490,1761853868728,-377.938554,0.000535,120]
[392718491,1761853868738,-205.934546,0.000535,120]
[392718492,1761853868747,-377.938554,0.000535,120]
[392718493,1761853868757,-205.934546,0.000535,120]
[392718494,1761853868766,-377.938554,0.000535,120]
[392718495,1761853868776,-205.934546,0.000535,120]
[392718496,1761853868786,-377.938556,0.000535,120]
[392718497,1761853868796,-205.934539,0.000535,120]
[392718498,1761853868863,-500.0,0.00053698,120]
[392718499,1761853868874,-500.0,0.00053698,120]
[392718500,1761853868888,-500.0,0.00053698,120]
[392718501,1761853868897,-500.0,0.00053698,120]
[392718502,1761853868908,-441.24,0.00053698,120]
[392718503,1761853868918,-500.0,0.00053698,120]
[392718504,1761853868928,-500.0,0.00053698,120]
[392718505,1761853868938,-500.0,0.00053698,120]
[392718506,1761853868948,-552.15,0.00053698,120]
[392718507,1761853868958,-500.0,0.00053698,120]
[392718508,1761853868968,-500.0,0.00053698,120]
[392718509,1761853868978,-500.0,0.00053698,120]
[392718510,1761853868987,-209.82,0.00053698,120]
[392718511,1761853868997,-500.0,0.00053698,120]
[392718512,1761853869007,-500.0,0.00053698,120]
[392718513,1761853869016,-500.0,0.00053698,120]
[392718514,1761853869026,-569.28,0.00053698,21]
[392718515,1761853869035,-500.0,0.00053698,120]
[392718516,1761853869045,-500.0,0.00053698,120]
[392718517,1761853869054,-500.0,0.00053698,120]
[392718518,1761853869064,-500.0,0.00053698,120]
[392718519,1761853869074,-970.77,0.00053698,3]
[392718520,1761853869083,-283.36,0.00053698,120]
[392718521,1761853869093,-500.0,0.00053698,120]
[392718522,1761853869103,-500.0,0.00053698,120]
[392718523,1761853869113,-500.0,0.00053698,120]
[392718524,1761853869123,-500.0,0.00053698,120]
[392718525,1761853869134,-500.0,0.00053698,120]
[392718526,1761853869144,-500.0,0.00053698,120]
[392718527,1761853869154,-500.0,0.00053698,120]
[392718528,1761853869164,-485.7,0.00053698,120]
[392718529,1761853869174,-500.0,0.00053698,120]
[392718530,1761853869184,-2466.68,0.00053698,120]
[392718531,1761853869193,-500.0,0.00053698,120]
[392718532,1761853869203,-500.0,0.00053698,120]
[392718533,1761853869212,-557.76,0.00053698,120]
[392718534,1761853869223,-500.0,0.00053698,120]
[392718535,1761853869232,-500.0,0.00053698,120]
[392718536,1761853869241,-500.0,0.00053698,120]
[392718537,1761853869251,-500.0,0.00053698,120]
[392718538,1761853869262,-458.37,0.00053698,120]
[392718539,1761853869271,-500.0,0.00053698,120]
[392718540,1761853869280,-500.0,0.00053698,120]
[392718541,1761853869289,-500.0,0.00053698,120]
[392718542,1761853869298,-500.0,0.00053698,120]
[392718543,1761853869308,-500.0,0.00053698,120]
[392718544,1761853869317,-500.0,0.00053698,120]
[392718545,1761853869327,-500.0,0.00053698,120]
[392718546,1761853869337,-500.0,0.00053698,120]
[392718547,1761853869347,-619.4,0.00053698,120]
[392718548,1761853869356,-500.0,0.00053698,120]
[392718549,1761853869365,-302.61,0.00053698,120]
[392718550,1761853869375,-500.0,0.00053698,120]
[392718551,1761853869386,-500.0,0.00053698,120]
[392718552,1761853869396,-946.45991785,0.00053716,10]
[392718553,1761853869406,-2000.0,0.00053744,10]
[392718554,1761853869415,-150.0,0.00053807,30]
[392718555,1761853869424,-159.36862717,0.00053863,120]
[392718556,1761853869440,-1000.0,0.0005389,120]
[392718557,1761853869450,-244.0,0.0005389,120]
[392718558,1761853869459,-500.0,0.00053896,60]
[392718559,1761853869468,-2000.0,0.000539,120]
[392718560,1761853869480,-488.52446978,0.000539,7]
[392718561,1761853869489,-1952.14378126,0.000539,7]
[392718562,1761853869499,-500.0,0.00053972,120]
[392718563,1761853869510,-500.0,0.00053972,120]
[392718564,1761853869519,-500.0,0.00053972,120]
[392718565,1761853869529,-500.0,0.00053972,120]
[392718566,1761853869539,-353.44,0.00053972,120]
[392718567,1761853869549,-500.0,0.00053972,120]
[392718568,1761853869559,-500.0,0.00053972,120]
[392718569,1761853869569,-166.87,0.00053972,120]
[392718570,1761853869578,-500.0,0.00053972,120]
[392718571,1761853869589,-500.0,0.00053972,120]
[392718572,1761853869598,-500.0,0.00053972,120]
[392718573,1761853869607,-500.0,0.00053972,120]
[392718574,1761853869617,-500.0,0.00053972,120]
[392718575,1761853869628,-500.0,0.00053972,120]
[392718576,1761853869637,-500.0,0.00053972,120]
[392718577,1761853869658,-405.97,0.00053972,120]
[392718578,1761853869668,-500.0,0.00053972,120]
[392718579,1761853869678,-970.77,0.00053972,3]
[392718580,1761853869688,-500.0,0.00053972,120]
[392718581,1761853869697,-500.0,0.00053972,120]
[392718582,1761853869707,-500.0,0.00053972,120]
[392718583,1761853869717,-500.0,0.00053972,120]
[392718584,1761853869726,-500.0,0.00053972,120]
[392718585,1761853869736,-500.0,0.00053972,120]
[392718586,1761853869745,-500.0,0.00053972,120]
[392718587,1761853869755,-500.0,0.00053972,120]
[392718588,1761853869764,-2466.68,0.00053972,120]
[392718589,1761853869773,-500.0,0.00053972,120]
[392718590,1761853869783,-500.0,0.00053972,120]
[392718591,1761853869792,-500.0,0.00053972,120]
[392718592,1761853869801,-269.83,0.00053972,120]
[392718593,1761853869811,-500.0,0.00053972,120]
[392718594,1761853869820,-500.0,0.00053972,120]
[392718595,1761853869829,-500.0,0.00053972,120]
[392718596,1761853869890,-500.0,0.00053972,120]
[392718597,1761853869900,-205.9,0.00053972,120]
[392718598,1761853869909,-500.0,0.00053972,120]
[392718599,1761853869919,-500.0,0.00053972,120]
[392718600,1761853869928,-500.0,0.00053972,120]
[392718601,1761853869938,-513.34,0.00053972,120]
[392718602,1761853869947,-500.0,0.00053972,120]
[392718603,1761853869956,-619.4,0.00053972,120]
[392718604,1761853869965,-500.0,0.00053972,120]
[392718605,1761853869975,-500.0,0.00053972,120]
[392718606,1761853869984,-252.31,0.00053972,120]
[392718607,1761853869993,-1500.0,0.00054,120]
[392718608,1761853870002,-151.0,0.00054244,120]
[392718609,1761853870011,-151.0,0.00054244,120]
[392718610,1761853870020,-151.0,0.00054244,120]
[392718611,1761853870029,-151.0,0.00054244,120]
[392718612,1761853870038,-151.0,0.00054244,120]
[392718613,1761853870047,-151.0,0.00054244,120]
[392718614,1761853870056,-151.0,0.00054244,120]
[392718615,1761853870066,-265.419351,0.00054244,120]
[392718616,1761853870075,-151.0,0.00054244,120]
[392718617,1761853870084,-151.0,0.00054244,120]
[392718618,1761853870094,-151.0,0.00054244,120]
[392718619,1761853870103,-151.0,0.00054244,120]
[392718620,1761853870112,-151.0,0.00054244,120]
[392718621,1761853870121,-151.0,0.00054244,120]
[392718622,1761853870133,-151.0,0.00054244,120]
[392718623,1761853870142,-151.0,0.00054244,30]
[392718624,1761853870150,-368.682964,0.00054244,15]
[392718625,1761853870160,-368.682964,0.00054244,15]
[392718626,1761853870169,-368.682964,0.00054244,15]
[392718627,1761853870179,-368.682964,0.00054244,15]
[392718628,1761853870189,-486.945627,0.00054244,120]
[392718629,1761853870198,-486.945627,0.00054244,120]
[392718630,1761853870208,-486.945627,0.00054244,120]
[392718631,1761853870218,-486.945627,0.00054244,120]
[392718632,1761853870228,-151.0,0.00054244,120]
[392718633,1761853870237,-151.0,0.00054244,120]
[392718634,1761853870247,-254.046152,0.00054244,120]
[392718635,1761853870257,-255.044671,0.00054244,120]
[392718636,1761853870266,-254.046152,0.00054244,120]
[392718637,1761853870276,-254.046152,0.00054244,120]
[392718638,1761853870285,-254.046152,0.00054244,120]
[392718639,1761853870294,-196.102949,0.00054244,120]
[392718640,1761853870303,-151.0,0.00054244,120]
[392718641,1761853870312,-151.0,0.00054244,120]
[392718642,1761853870321,-151.0,0.00054244,120]
[392718643,1761853870331,-151.0,0.00054244,120]
[392718644,1761853870340,-151.0,0.00054244,120]
[392718645,1761853870349,-151.0,0.00054244,120]
[392718646,1761853870358,-215.598293,0.00054244,120]
[392718647,1761853870368,-151.0,0.00054244,120]
[392718648,1761853870380,-215.598293,0.00054244,120]
[392718649,1761853870391,-151.0,0.00054244,120]
[392718650,1761853870400,-215.598293,0.00054244,120]
[392718651,1761853870409,-151.0,0.00054244,120]
[392718652,1761853870419,-215.598293,0.00054244,120]
[392718653,1761853870429,-54220.49051159,0.00054244,120]
[392718654,1761853870439,-500.0,0.00054246,120]
[392718655,1761853870450,-500.0,0.00054246,120]
[392718656,1761853870459,-500.0,0.00054246,120]
[392718657,1761853870469,-166.66,0.00054246,120]
[392718658,1761853870479,-500.0,0.00054246,120]
[392718659,1761853870488,-500.0,0.00054246,120]
[392718660,1761853870497,-500.0,0.00054246,120]
[392718661,1761853870506,-500.0,0.00054246,120]
[392718662,1761853870518,-500.0,0.00054246,120]
[392718663,1761853870527,-297.86,0.00054246,120]
[392718664,1761853870536,-500.0,0.00054246,120]
[392718665,1761853870545,-649.88,0.00054246,120]
[392718666,1761853870554,-500.0,0.00054246,120]
[392718667,1761853870563,-500.0,0.00054246,120]
[392718668,1761853870573,-970.77,0.00054246,3]
[392718669,1761853870582,-500.0,0.00054246,120]
[392718670,1761853870591,-211.58,0.00054246,120]
[392718671,1761853870600,-500.0,0.00054246,120]
[392718672,1761853870609,-500.0,0.00054246,120]
[392718673,1761853870618,-500.0,0.00054246,120]
[392718674,1761853870630,-500.0,0.00054246,120]
[392718675,1761853870640,-500.0,0.00054246,120]
[392718676,1761853870649,-500.0,0.00054246,120]
[392718677,1761853870659,-2466.68,0.00054246,120]
[392718678,1761853870668,-196.31,0.00054246,120]
[392718679,1761853870678,-500.0,0.00054246,120]
[392718680,1761853870687,-500.0,0.00054246,120]
[392718681,1761853870697,-500.0,0.00054246,120]
[392718682,1761853870706,-500.0,0.00054246,120]
[392718683,1761853870716,-500.0,0.00054246,120]
[392718684,1761853870725,-500.0,0.00054246,120]
[392718685,1761853870735,-294.56,0.00054246,120]
[392718686,1761853870792,-500.0,0.00054246,120]
[392718687,1761853870803,-500.0,0.00054246,120]
[392718688,1761853870812,-500.0,0.00054246,120]
[392718689,1761853870821,-619.4,0.00054246,120]
[392718690,1761853870831,-500.0,0.00054246,120]
[392718691,1761853870840,-500.0,0.00054246,120]
[392718692,1761853870849,-2466.6601909,0.00054292,10]
[392718693,1761853870863,-4276.65,0.000543,14]
[392718694,1761853870872,-331.04,0.000543,14]
[392718695,1761853870883,-2000.0,0.000543,59]
[392718696,1761853870893,-151.0,0.00054344,120]
[392718697,1761853870903,-691.089861,0.00054344,120]
[392718698,1761853870912,-691.089861,0.00054344,120]
[392718699,1761853870922,-691.089861,0.00054344,120]
[392718700,1761853870932,-691.089857,0.00054344,120]
[392718701,1761853870941,-151.0,0.00054344,120]
[392718702,1761853870950,-532.207954,0.00054344,120]
[392718703,1761853870960,-296.346546,0.00054344,120]
[392718704,1761853870969,-532.207954,0.00054344,120]
[392718705,1761853870978,-532.207954,0.00054344,120]
[392718706,1761853870987,-296.346546,0.00054344,120]
[392718707,1761853870999,-532.207946,0.00054344,120]
[392718708,1761853871009,-296.346546,0.00054344,120]
[392718709,1761853871019,-296.346546,0.00054344,120]
[392718710,1761853871029,-4794.09715861,0.00054344,2]
[392718711,1761853871038,-500.0,0.00054344,30]
[392718712,1761853871048,-500.0,0.00054344,30]
[392718713,1761853871057,-1000.0,0.00054379,120]
[392718714,1761853871066,-3880.19629256,0.0005438,120]
[392718715,1761853871075,-10000.0,0.0005439,120]
[392718716,1761853871084,-153.619015,0.00054434,4]
[392718717,1761853871093,-155.123184,0.00054434,4]
[392718718,1761853871102,-1000.0,0.00054443,120]
[392718719,1761853871111,-155.0,0.00054443,120]
[392718720,1761853871121,-213.96859442,0.00054443,30]
[392718721,1761853871133,-471236.45879438,0.00054444,30]
[392718722,1761853871329,-1547.48338575,0.00054444,30]
[392718723,1761853871350,-1202.55341041,0.00054444,30]
[392718724,1761853871370,-693122.00041789,0.00054444,30]
[392718725,1761853871388,-682.09390329,0.00054444,30]
[392718726,1761853871404,-19718.13855295,0.00054444,30]
[392718727,1761853871422,-2813.928,0.00054444,30]
[392718728,1761853871442,-360.69996,0.00054444,30]
[392718729,1761854102677,403.80339554,0.00029,2]
[392718730,1761854126961,402.52864178,0.00029,2]
[392718731,1761854768743,357.87498058,0.00029,2]
[392718775,1761855032344,-226.43499892,0.00034471,4]
[392718777,1761855032354,-337.1265234,0.00035725,2]
[392718779,1761855032364,-295.25971685,0.00035966,2]
[392718781,1761855032374,-1000.0,0.000364,21]
[392718784,1761855032384,-200.0,0.00036485,30]
[392718786,1761855032394,-413.18131695,0.00036786,2]
[392718787,1761855032403,-531.46749033,0.00036794,2]
[392718789,1761855032413,-150.0,0.00037593,2]
[392718791,1761855032422,-472.20721937,0.00038947,2]
[392718795,1761855032432,-944.83109393,0.00038955,2]
[392718798,1761855032442,-150.0,0.00041011,2]
[392718801,1761855032451,-153.0,0.00041776,30]
[392718804,1761855032459,-153.0,0.00041776,30]
[392718807,1761855032468,-150.0,0.00042696,30]
[392718810,1761855032478,-412.0,0.00042957,2]
[392718813,1761855032487,-150.0,0.00044429,2]
[392718815,1761855032496,-214.2274123,0.00044989,2]
[392718817,1761855032505,-746.2,0.000457,60]
[392718819,1761855032514,-151.0,0.00045773,2]
[392718821,1761855032523,-151.0,0.00045773,2]
[392718823,1761855032532,-151.0,0.00045773,2]
[392718825,1761855032541,-151.0,0.00045773,2]
[392718827,1761855032550,-151.0,0.00045773,2]
[392718829,1761855032559,-151.0,0.00045773,2]
[392718831,1761855032568,-151.0,0.00045773,2]
[392718833,1761855032577,-151.0,0.00045773,2]
[392718834,1761855032586,-151.0,0.00045773,2]
[392718836,1761855032595,-151.0,0.00045773,2]
[392718838,1761855032605,-151.0,0.00045773,2]
[392718840,1761855032614,-151.0,0.00045773,2]
[392718842,1761855032623,-151.0,0.00045773,2]
[392718844,1761855032633,-151.0,0.00045773,2]
[392718846,1761855032641,-151.0,0.00045773,2]
[392718848,1761855032651,-151.0,0.00045773,2]
[392718850,1761855032660,-151.0,0.00045773,2]
[392718852,1761855032669,-151.0,0.00045773,2]
[392718854,1761855032679,-151.0,0.00045773,2]
[392718856,1761855032688,-151.0,0.00045773,2]
[392718858,1761855032699,-399.65875064,0.00045773,7]
[392718860,1761855032708,-500.0,0.00045773,10]
[392718862,1761855032717,-500.0,0.00045773,10]
[392718864,1761855032727,-2014.56,0.0004579,10]
[392718866,1761855032735,-2081.71,0.0004579,10]
[392718868,1761855032745,-1734.76,0.0004579,10]
[392718870,1761855032754,-509.77187683,0.00045799,31]
[392718871,1761855032766,-216.99368438,0.00045799,120]
[392718873,1761855032775,-81571.45728715,0.000458,2]
[392719178,1761855038166,-215.6600068,0.00045799,120]
[392719179,1761855038176,-319.62347385,0.00045799,120]
[392719180,1761855038186,-196.18523464,0.00045799,120]
[392719181,1761855038195,-12672.43211087,0.000458,2]
[392719317,1761855040476,-321.30604816,0.000458,2]
[392719318,1761855040488,-702.81564179,0.000458,2]
[392719319,1761855040530,-594.0,0.000458,2]
[392719320,1761855040586,-8352.0345203,0.000458,2]
[392719355,1761855043337,-1445.63,0.0004579,10]
[392719356,1761855043349,-9708.3650919,0.000458,2]
[392719357,1761855043360,-25492.0,0.000458,2]
[392719369,1761855046492,-1936.82,0.000458,2]
[392719383,1761855543998,168.01,0.00029,2]
[392719387,1761855913482,162.08398,0.00013699,2]
[392719388,1761855913723,162.08398,0.00022505,2]
[392719389,1761855914155,-162.08398,0.00031311,2]
[392719405,1761856104617,10000.01,0.00022,2]
[392719406,1761856104639,10000.01,0.00022,2]
[392719407,1761856104659,10000.01,0.00022,2]
[392719408,1761856104680,10000.01,0.00022,2]
[392719409,1761856104700,10000.01,0.00022,2]
[392719410,1761856104720,10000.01,0.00022,2]
[392719411,1761856104742,94.44639084,0.00022,2]
[392719413,1761856107330,9905.56360916,0.00019,2]
[392719414,1761856107351,10000.01,0.00019,2]
[392719415,1761856107372,5244.32928251,0.00019,2]
[392719418,1761856111369,454.88925804,0.0002,2]
[392719419,1761856111392,1402.2633967,0.0002,2]
[392719420,1761856113664,615.70742439,0.000215,2]
[392719421,1761856113684,454.88925804,0.000215,2]
[392719422,1761856113704,3353.41732079,0.000215,2]
[392719423,1761856113724,8311.51275665,0.000215,2]
[392719424,1761856116580,160.81816635,0.0002,2]
[392719425,1761856116603,1688.49724335,0.0002,2]
[392719426,1761856116625,2225.80155886,0.0002,2]
[392719427,1761856117005,7774.20844114,0.00022,2]
[392719428,1761856117038,1782.46786732,0.00022,2]
[392719429,1761856133658,-267.92156644,0.0003,2]
[392719430,1761856133803,-1204.69,0.0003299,10]
[392719431,1761856133832,-1003.91,0.0003299,10]
[392719432,1761856133861,-2000.0,0.00032997,2]
[392719433,1761856133890,-356.84031378,0.00032999,7]
[392719434,1761856139785,-6916.1328258,0.00033,7]
[392719435,1761856139899,-10000.01,0.00033,7]
[392719436,1761856140041,-10000.01,0.00033,7]
[392719437,1761856140156,-10000.01,0.00033,7]
[392719438,1761856140349,-10000.01,0.00033,7]
[392719439,1761856140462,-10000.01,0.00033,7]
[392719440,1761856140559,-10000.01,0.00033,7]
[392719441,1761856142512,-10000.01,0.00033,7]
[392719442,1761856142629,-10000.01,0.00033,7]
[392719443,1761856142756,-10000.01,0.00033,7]
[392719444,1761856142892,-10000.01,0.00033,7]
[392719445,1761856145722,-10000.01,0.00033,7]
[392719446,1761856145983,-3083.7571742,0.00033,7]
[392719466,1761856232420,-312.0,0.0003526,2]
[392719467,1761856232430,-330.19,0.00036488,10]
[392719468,1761856232477,-506.4,0.00036488,10]
[392719469,1761856232488,-697.16,0.00036488,10]
[392719470,1761856232498,-152.39081389,0.00036498,10]
[392719471,1761856232507,-97044.06334827,0.00036498,20]
[392719472,1761856232520,-1565.88413574,0.00036498,20]
[392719518,1761856238283,-249.78821965,0.00036497,15]
[392719520,1761856238293,-706.95306006,0.00036498,20]
[392719521,1761856238304,-381.18565502,0.00036498,20]
[392719522,1761856238316,-2496.65,0.00036498,20]
[392719523,1761856238340,-608389.25669655,0.00036498,20]
[392719524,1761856238350,-1500.0,0.00036498,2]
[392719525,1761856238360,-1004.64116058,0.00036498,2]
[392719526,1761856238369,-231.73,0.000365,14]
[392719527,1761856238381,-3421.32,0.000365,14]
[392719528,1761856238391,-48489.34863828,0.0003699,2]
[392719529,1761856238401,-168.0,0.00037749,2]
[392719531,1761856238411,-792.2767418,0.00038033,30]
[392719533,1761856238420,-168.0,0.00038124,2]
[392719535,1761856238430,-241.113926,0.00038308,2]
[392719537,1761856238440,-150.0,0.00038383,2]
[392719539,1761856238449,-162.08398,0.00040117,2]
[392719541,1761856238459,-150.0,0.00041872,2]
[392719542,1761856238468,-326.63248005,0.00044364,7]
[392719543,1761856238478,-412.0,0.00044637,2]
[392719544,1761856238487,-200.0,0.00045,120]
[392719545,1761856238497,-189.09053501,0.00045342,2]
[392719546,1761856238506,-150.0,0.00045362,2]
[392719547,1761856238516,-151.0,0.00045673,2]
[392719548,1761856238525,-151.0,0.00045673,2]
[392719549,1761856238535,-151.0,0.00045673,2]
[392719550,1761856238545,-151.0,0.00045673,2]
[392719551,1761856238554,-151.0,0.00045673,2]
[392719552,1761856238564,-151.0,0.00045673,2]
[392719553,1761856238574,-151.0,0.00045673,2]
[392719554,1761856238583,-151.0,0.00045673,2]
[392719555,1761856238592,-151.0,0.00045673,2]
[392719556,1761856238602,-151.0,0.00045673,2]
[392719557,1761856238611,-151.0,0.00045673,2]
[392719558,1761856238621,-151.0,0.00045673,2]
[392719559,1761856238633,-151.0,0.00045673,2]
[392719560,1761856238647,-151.0,0.00045673,2]
[392719561,1761856238658,-151.0,0.00045673,2]
[392719562,1761856238668,-151.0,0.00045673,2]
[392719563,1761856238677,-151.0,0.00045673,2]
[392719564,1761856238687,-151.0,0.00045673,2]
[392719565,1761856238699,-151.0,0.00045673,2]
[392719566,1761856238708,-151.0,0.00045673,2]
[392719567,1761856238717,-125313.61700513,0.000457,2]
[392719599,1761856240606,-94789.49545418,0.000457,2]
[392719708,1761856243574,-580.97,0.0004569,10]
[392719710,1761856243584,-3125.43,0.000457,2]
[392719724,1761856246431,-31985.48073634,0.000457,2]
[392719725,1761856246599,-1698.0254269,0.000457,2]
[392719728,1761856246610,-1133.8,0.000457,2]
[392719729,1761856529719,150.0,0.0002589,2]
[392719730,1761856530073,177.0,0.0002789,2]
[392719731,1761856530459,204.0,0.0002989,2]
[392719732,1761856530822,231.0,0.0003189,2]
[392719733,1761856531186,173.01853443,0.0003389,120]
[392719734,1761856801898,444.02814142,0.00029,3]
[392719735,1761856801922,10000.01,0.00029,3]
[392719736,1761856801949,10000.01,0.00029,3]
[392719737,1761856801974,2555.95185858,0.00029,3]
[392719739,1761857237745,10000.0,0.0003,100]
[392719742,1761857424365,200.0,0.0003662,60]